fUSD/lending_fUSD_20251108
["ID","MTS","AMOUNT","RATE_DAILY","PERIOD"]
[393404270,1762597832802,-500.0,0.00017999,2]
[393404271,1762597832811,-500.0,0.00017999,2]
[393404272,1762597832823,-500.0,0.00017999,2]
[393404273,1762597832832,-178.90714711,0.00017999,2]
[393404274,1762597832842,-500.0,0.00017999,2]
[393404275,1762597832851,-500.0,0.00017999,2]
[393404276,1762597832860,-500.0,0.00017999,2]
[393404277,1762597832869,-275.18543709,0.00017999,2]
[393404278,1762597832879,-456.38880462,0.00017999,2]
[393404279,1762597832888,-185094.32883696,0.00018,2]
[393404280,1762597832900,-23732.55274215,0.00018,2]
[393404281,1762597832913,-45260.08579328,0.00018,2]
[393404282,1762597832923,-3541.45575331,0.00018,2]
[393404283,1762597832934,-45389.46304441,0.00018,2]
[393404284,1762597832945,-1986.03961076,0.00018,2]
[393404285,1762597838347,-4649.7214,0.000179,2]
[393404286,1762597838357,-109250.27860005,0.00018,2]
[393404287,1762597838370,-852360.09478383,0.00018,2]
[393404288,1762597838379,-251.66666667,0.00018,2]
[393404289,1762597838390,-596266.35647653,0.00018,2]
[393404291,1762597838400,-200.0,0.00018,2]
[393404293,1762597838410,-436.67329,0.00018,2]
[393404295,1762597838420,-230.34646382,0.00018,2]
[393404297,1762597838429,-1680.0,0.00018053,2]
[393404298,1762597838439,-250.0,0.00018081,2]
[393404299,1762597838449,-300.62272235,0.00018081,2]
[393404300,1762597838459,-2500.0,0.00018081,2]
[393404302,1762597838469,-195.0,0.00018081,2]
[393404304,1762597838479,-300.0,0.00018081,2]
[393404306,1762597838489,-250.0,0.00018081,2]
[393404307,1762597838499,-620.07204538,0.00018082,2]
[393404309,1762597838508,-195.0,0.00018082,2]
[393404311,1762597838518,-500.0,0.00018105,2]
[393404313,1762597838528,-200.0,0.0001818,2]
[393404315,1762597838539,-166.66,0.00018183,2]
[393404316,1762597838549,-196.47158025,0.00018194,2]
[393404317,1762597838559,-746.44860371,0.00018206,2]
[393404318,1762597838569,-861.52,0.00018212,2]
[393404319,1762597838578,-500.0,0.00018247,2]
[393404320,1762597838590,-265.44,0.00018258,2]
[393404321,1762597838600,-410.89,0.00018263,2]
[393404322,1762597838611,-8019.37,0.00018337,2]
[393404323,1762597838622,-200.0,0.00018362,2]
[393404324,1762597838632,-500.0,0.00018521,2]
[393404325,1762597838642,-500.0,0.00018521,2]
[393404326,1762597838653,-1003.51222161,0.00018521,2]
[393404327,1762597838672,-410.89,0.00018537,2]
[393404328,1762597838682,-166.66,0.00018543,2]
[393404329,1762597838693,-200.0,0.00018545,2]
[393404330,1762597838703,-500.0,0.00018606,2]
[393404331,1762597838714,-500.0,0.00018606,2]
[393404332,1762597838724,-500.0,0.00018606,2]
[393404333,1762597838734,-500.0,0.00018606,2]
[393404334,1762597838744,-500.0,0.00018606,2]
[393404335,1762597838755,-274.40671567,0.00018606,2]
[393404336,1762597838764,-374.78377538,0.00018606,2]
[393404337,1762597838774,-500.0,0.00018606,2]
[393404338,1762597838784,-501.17210201,0.00018606,2]
[393404339,1762597838794,-500.0,0.00018606,2]
[393404340,1762597838804,-500.0,0.00018606,2]
[393404341,1762597838813,-500.0,0.00018606,2]
[393404342,1762597838823,-8310.13255108,0.00018703,2]
[393404343,1762597838834,-200.0,0.00018731,2]
[393404344,1762597838845,-2064.94,0.00018798,2]
[393404345,1762597838855,-150.12,0.000188,2]
[393404346,1762597838867,-150.12,0.000188,2]
[393404347,1762597838878,-150.12,0.000188,2]
[393404348,1762597838888,-150.12,0.000188,2]
[393404349,1762597838899,-150.12,0.000188,2]
[393404350,1762597838909,-150.12,0.000188,2]
[393404351,1762597838919,-150.12,0.000188,2]
[393404352,1762597838929,-150.12,0.000188,2]
[393404353,1762597838940,-150.12,0.000188,2]
[393404354,1762597838951,-150.12,0.000188,2]
[393404355,1762597838960,-150.12,0.000188,2]
[393404356,1762597838970,-150.12,0.000188,2]
[393404357,1762597838981,-150.12,0.000188,2]
[393404358,1762597838990,-150.12,0.000188,2]
[393404359,1762597839000,-410.89,0.00018811,2]
[393404360,1762597839011,-2637.41,0.00018848,2]
[393404361,1762597839021,-150.0,0.00018881,2]
[393404362,1762597839031,-166.66,0.00018903,2]
[393404363,1762597839040,-500.0,0.00018986,2]
[393404364,1762597839050,-410.9,0.00019085,2]
[393404365,1762597839060,-861.52,0.00019088,2]
[393404366,1762597839069,-500.0,0.00019154,2]
[393404367,1762597839079,-506.27473026,0.00019154,2]
[393404368,1762597839089,-239.69,0.0001939,2]
[393404369,1762597839099,-1000.0,0.00019608,2]
[393404370,1762597839109,-587.0,0.00019631,2]
[393404371,1762597839120,-2351.0,0.00019828,2]
[393404372,1762597839130,-861.52,0.00019965,2]
[393404373,1762597839140,-436.6733,0.0002,2]
[393404374,1762597839151,-300.0,0.00020032,2]
[393404375,1762597839162,-150.12,0.00020135,2]
[393404376,1762597839172,-150.12,0.00020135,2]
[393404377,1762597839181,-151.0,0.00020142,2]
[393404378,1762597839192,-151.0,0.00020145,7]
[393404379,1762597839202,-150.0,0.00020145,2]
[393404380,1762597839212,-158.10520821,0.00020145,2]
[393404381,1762597839223,-150.0,0.00020145,2]
[393404382,1762597839232,-150.0,0.00020145,2]
[393404383,1762597839243,-155.73974734,0.00020145,2]
[393404384,1762597839254,-150.0,0.00020145,2]
[393404385,1762597839264,-150.0,0.00020145,2]
[393404386,1762597839275,-150.0,0.00020145,2]
[393404387,1762597839286,-150.0,0.00020145,2]
[393404388,1762597839297,-150.0,0.00020145,2]
[393404389,1762597839307,-236.93449903,0.00020145,2]
[393404390,1762597839318,-150.0,0.00020145,2]
[393404391,1762597839328,-150.0,0.00020145,2]
[393404392,1762597839338,-150.0,0.00020145,2]
[393404393,1762597839348,-150.0,0.00020145,2]
[393404394,1762597839358,-150.0,0.00020145,2]
[393404395,1762597839368,-200.0,0.00020145,2]
[393404396,1762597839377,-150.0,0.00020145,2]
[393404397,1762597839387,-307.780311,0.00020145,7]
[393404398,1762597839396,-565.402651,0.00020145,7]
[393404399,1762597839407,-307.780311,0.00020145,7]
[393404400,1762597839417,-565.402651,0.00020145,7]
[393404401,1762597839428,-307.780311,0.00020145,7]
[393404402,1762597839438,-565.402651,0.00020145,7]
[393404403,1762597839448,-307.780311,0.00020145,7]
[393404404,1762597839458,-565.402651,0.00020145,7]
[393404405,1762597839467,-151.0,0.00020145,7]
[393404406,1762597839477,-151.0,0.00020145,7]
[393404407,1762597839487,-4806.42,0.00020145,2]
[393404408,1762597839497,-9999.99,0.00020145,2]
[393404409,1762597839507,-421.38,0.00020145,2]
[393404410,1762597839517,-1427.6,0.00020145,2]
[393404411,1762597839527,-299.99,0.00020145,7]
[393404412,1762597839538,-9999.99,0.00020145,2]
[393404413,1762597839549,-150.99,0.00020145,2]
[393404414,1762597839559,-999.99,0.00020145,2]
[393404415,1762597839569,-508.76,0.00020145,2]
[393404416,1762597839579,-150.99,0.00020145,2]
[393404417,1762597839589,-45934.84,0.00020145,2]
[393404418,1762597839599,-9999.99,0.00020145,2]
[393404419,1762597839608,-1818.29,0.00020145,2]
[393404420,1762597839617,-1822.68,0.00020145,2]
[393404421,1762597839626,-9999.99,0.00020145,2]
[393404422,1762597839636,-9999.99,0.00020145,2]
[393404423,1762597839648,-501.50530848,0.00020173,2]
[393404424,1762597839658,-386.48130404,0.00020173,2]
[393404425,1762597839669,-505.85898911,0.00020173,2]
[393404426,1762597839679,-235.33606138,0.00020173,2]
[393404427,1762597839689,-501.39454671,0.00020173,2]
[393404428,1762597839699,-500.0,0.00020173,2]
[393404429,1762597839708,-450.13,0.00020187,2]
[393404430,1762597839718,-3448.95219338,0.00020231,2]
[393404431,1762597839728,-271.93681743,0.00020231,2]
[393404432,1762597839738,-150.0,0.00020282,2]
[393404433,1762597839748,-150.0,0.00020282,2]
[393404434,1762597839758,-150.0,0.00020282,2]
[393404435,1762597839767,-150.0,0.00020282,2]
[393404436,1762597839777,-200.0,0.00020282,2]
[393404437,1762597839786,-150.0,0.00020282,2]
[393404438,1762597839796,-878.7310407,0.00020383,2]
[393404439,1762597839806,-200.0,0.00020419,2]
[393404440,1762597839816,-200.0,0.00020419,2]
[393404441,1762597839827,-200.0,0.00020419,2]
[393404442,1762597839838,-200.0,0.00020419,2]
[393404443,1762597839848,-200.0,0.00020419,2]
[393404444,1762597839857,-2751.0,0.00020545,2]
[393404445,1762597839867,-409.16,0.00020588,2]
[393404446,1762597839876,-500.0,0.00020596,2]
[393404449,1762597839886,-1000.0,0.00020669,2]
[393404451,1762597839896,-585.0,0.00020685,2]
[393404452,1762597839907,-2000.0,0.000208,2]
[393404453,1762597839917,-861.52,0.00020842,2]
[393404454,1762597839926,-2699.9695241,0.00020887,2]
[393404455,1762597839936,-500.0,0.0002095,2]
[393404456,1762597839946,-500.0,0.0002095,2]
[393404457,1762597839956,-196.0713978,0.00020954,2]
[393404458,1762597839965,-2142.0,0.00021102,2]
[393404459,1762597839977,-607.0,0.00021102,2]
[393404461,1762597839987,-379.94568324,0.0002132,2]
[393404462,1762597839997,-1525.021,0.00021402,2]
[393404463,1762597840006,-820.0,0.00021402,2]
[393404464,1762597840015,-574.0,0.00021402,2]
[393404465,1762597840025,-1316.0,0.00021402,2]
[393404466,1762597840034,-300.0,0.00021402,2]
[393404467,1762597840044,-1000.0,0.00021444,2]
[393404468,1762597840053,-224.0,0.00021454,2]
[393404469,1762597840063,-602.4446323,0.00021572,2]
[393404470,1762597840073,-861.52,0.00021718,2]
[393404471,1762597840082,-1249.0,0.00021777,2]
[393404472,1762597840093,-1000.0,0.00021787,2]
[393404473,1762597840103,-151.0,0.00021915,2]
[393404474,1762597840113,-5000.0,0.00021918,2]
[393404475,1762597840123,-500.0,0.00021918,4]
[393404476,1762597840132,-500.0,0.00021918,4]
[393404477,1762597840142,-500.0,0.00021918,4]
[393404478,1762597840152,-500.0,0.00021918,4]
[393404479,1762597840162,-500.0,0.00021918,4]
[393404480,1762597840172,-500.0,0.00021918,4]
[393404481,1762597840182,-500.0,0.00021918,4]
[393404482,1762597840191,-500.0,0.00021918,4]
[393404483,1762597840200,-436.6733,0.00022,2]
[393404484,1762597840210,-1000.0,0.00022219,2]
[393404485,1762597840219,-156.654221,0.00022456,2]
[393404486,1762597840229,-150.12,0.00022551,2]
[393404487,1762597840239,-3448.95219338,0.00022561,2]
[393404488,1762597840249,-271.93681743,0.00022561,2]
[393404489,1762597840259,-861.52,0.00022595,2]
[393404490,1762597840268,-150.12,0.00022911,2]
[393404491,1762597840277,-53518.13,0.00022921,2]
[393404492,1762597840287,-157.108984,0.00022921,7]
[393404493,1762597840296,-151.0,0.00022921,7]
[393404494,1762597840305,-151.0,0.00022921,7]
[393404495,1762597840315,-151.0,0.00022921,7]
[393404496,1762597840325,-307.780311,0.00022921,7]
[393404497,1762597840334,-565.402651,0.00022921,7]
[393404498,1762597840345,-307.780311,0.00022921,7]
[393404499,1762597840355,-565.402651,0.00022921,7]
[393404500,1762597840365,-307.780311,0.00022921,7]
[393404502,1762597840374,-565.402651,0.00022921,7]
[393404503,1762597840384,-307.780311,0.00022921,7]
[393404506,1762597840394,-565.402651,0.00022921,7]
[393404507,1762597840403,-151.0,0.00022921,7]
[393404509,1762597840413,-151.0,0.00022921,7]
[393404511,1762597840423,-1000.0,0.00022994,2]
[393404513,1762597840432,-153.88,0.00023009,2]
[393404515,1762597840441,-861.52,0.00023471,2]
[393404517,1762597840450,-1000.0,0.0002377,2]
[393404519,1762597840460,-155.25322022,0.0002389,2]
[393404521,1762597840469,-280.37541257,0.0002389,2]
[393404523,1762597840478,-1000.0,0.00023965,2]
[393404525,1762597840487,-436.6733,0.00024,2]
[393404527,1762597840496,-2142.0,0.00024102,2]
[393404529,1762597840506,-173.12,0.00024131,2]
[393404531,1762597840515,-861.52,0.00024348,2]
[393404533,1762597840525,-820.0,0.00024402,2]
[393404535,1762597840535,-574.0,0.00024402,2]
[393404536,1762597840544,-1316.0,0.00024402,2]
[393404538,1762597840554,-2000.0,0.000245,2]
[393404540,1762597840563,-1000.0,0.00024658,2]
[393404541,1762597840573,-843.0,0.0002473,2]
[393404542,1762597840582,-150.12,0.0002479,2]
[393404543,1762597840592,-150.12,0.0002479,2]
[393404544,1762597840602,-150.12,0.0002479,2]
[393404545,1762597840612,-150.12,0.0002479,2]
[393404546,1762597840622,-150.12,0.0002479,2]
[393404547,1762597840632,-150.12,0.0002479,2]
[393404548,1762597840642,-150.12,0.0002479,2]
[393404549,1762597840652,-150.12,0.0002479,2]
[393404550,1762597840662,-150.12,0.0002479,2]
[393404551,1762597840672,-150.12,0.0002479,2]
[393404552,1762597840682,-151.0,0.00024797,7]
[393404553,1762597840691,-500.0,0.00024799,2]
[393404554,1762597840701,-500.0,0.00024799,2]
[393404555,1762597840711,-500.0,0.00024799,2]
[393404556,1762597840721,-500.0,0.00024799,2]
[393404557,1762597840731,-343.13378119,0.00024799,2]
[393404558,1762597840741,-478.09862864,0.000248,3]
[393404559,1762597840751,-151.0,0.000248,7]
[393404560,1762597840760,-151.0,0.000248,7]
[393404561,1762597840770,-610127.538518,0.000248,3]
[393404562,1762597840779,-307.780311,0.000248,7]
[393404563,1762597840789,-565.402651,0.000248,7]
[393404564,1762597840799,-307.780311,0.000248,7]
[393404565,1762597840808,-565.402651,0.000248,7]
[393404566,1762597840818,-307.780311,0.000248,7]
[393404567,1762597840832,-565.402651,0.000248,7]
[393404568,1762597840843,-307.780311,0.000248,7]
[393404569,1762597840852,-565.402651,0.000248,7]
[393404570,1762597840862,-225.462016,0.000248,7]
[393404571,1762597840873,-151.0,0.000248,7]
[393404572,1762597840884,-150.12,0.0002489,2]
[393404573,1762597840893,-150.12,0.0002489,2]
[393404574,1762597840904,-150.12,0.0002489,2]
[393404575,1762597840914,-150.12,0.0002489,2]
[393404576,1762597840923,-150.12,0.0002489,2]
[393404577,1762597840934,-150.12,0.0002489,2]
[393404578,1762597840943,-150.12,0.0002489,2]
[393404579,1762597840953,-150.12,0.0002489,2]
[393404580,1762597840963,-150.12,0.0002489,2]
[393404581,1762597840973,-150.12,0.0002489,2]
[393404582,1762597840983,-150.12,0.0002489,2]
[393404583,1762597840994,-3448.95219338,0.00024892,2]
[393404584,1762597841004,-271.93681743,0.00024892,2]
[393404585,1762597841015,-151.0,0.00024897,7]
[393404586,1762597841027,-500.0,0.00024899,2]
[393404587,1762597841038,-500.0,0.00024899,2]
[393404588,1762597841048,-8562.36,0.000249,7]
[393404589,1762597841060,-223.39501825,0.000249,7]
[393404590,1762597841071,-151.0,0.000249,7]
[393404591,1762597841081,-2500.0,0.000249,9]
[393404592,1762597841095,-181582.49753836,0.000249,3]
[393404593,1762597841475,-1.7e-07,0.000188,2]
[393404594,1762597841487,-310.38637919,0.000188,2]
[393404595,1762597841497,-153.56430921,0.00018848,2]
[393404596,1762597841507,-166.059,0.00024102,2]
[393404597,1762597841517,-2072.05180528,0.000249,3]
[393404598,1762597841528,-425.84246072,0.000249,3]
[393404599,1762597841540,-348.93830026,0.000249,3]
[393404600,1762597841552,-886.51690003,0.000249,3]
[393404601,1762597841563,-528.65727326,0.000249,3]
[393404602,1762597841579,-9319.71079943,0.000249,3]
[393404603,1762597841593,-4195.70178374,0.000249,3]
[393404604,1762597841604,-3441.90960667,0.000249,3]
[393404605,1762597841616,-1127.17934932,0.000249,3]
[393404606,1762597841632,-500.0,0.000249,3]
[393404620,1762597843169,-151.0,0.00024899,2]
[393404621,1762597843188,-206.92425291,0.00024899,2]
[393404622,1762597843199,-142.07574709,0.000249,3]
[393404632,1762597846564,-151.0,0.00024899,2]
[393404633,1762597846574,-156.12861843,0.00024899,2]
[393404634,1762597846583,-8895.28093012,0.000249,3]
[393404636,1762598625489,643.664776,0.00038986,30]
[393404637,1762598941476,223.47,0.00025429,120]
[393404646,1762599032156,-199.28096274,0.0001686,2]
[393404647,1762599032166,-223.47,0.00016953,2]
[393404648,1762599032175,-620.07204538,0.00016956,2]
[393404649,1762599032184,-195.0,0.00016956,2]
[393404651,1762599032197,-1200.0,0.0001696,2]
[393404652,1762599032206,-550.0,0.0001696,2]
[393404653,1762599032215,-300.0,0.0001696,2]
[393404654,1762599032225,-300.0,0.0001696,2]
[393404655,1762599032239,-1200.0,0.0001696,2]
[393404656,1762599032248,-250.0,0.0001696,2]
[393404657,1762599032259,-1868.47813189,0.00016961,2]
[393404658,1762599032472,-10097.85924975,0.00016961,2]
[393404661,1762599032484,-43263.90261836,0.00016961,2]
[393404663,1762599032493,-195.0,0.00016992,2]
[393404664,1762599032502,-250.0,0.00017125,2]
[393404665,1762599032511,-150.0,0.00017167,2]
[393404666,1762599032521,-5998.89,0.00017181,2]
[393404668,1762599032530,-859.20718774,0.00017276,2]
[393404670,1762599032542,-7160.16281226,0.00017276,2]
[393404672,1762599032551,-5502.67,0.00017445,2]
[393404674,1762599032560,-173.12,0.0001752,2]
[393404676,1762599032570,-1000.0,0.000177,2]
[393404678,1762599032579,-322.0541,0.000177,2]
[393404680,1762599032588,-16936.3978334,0.00017772,2]
[393404697,1762599038171,-1006.2910037,0.00017772,2]
[393404698,1762599038183,-1238.3362777,0.00017772,2]
[393404699,1762599038196,-500.0,0.00017773,2]
[393404700,1762599038205,-500.0,0.00017773,2]
[393404701,1762599038215,-164.47261651,0.00017773,2]
[393404702,1762599038224,-222.19110579,0.00017773,2]
[393404703,1762599038236,-277.80889421,0.00017773,2]
[393404704,1762599038245,-500.0,0.00017773,2]
[393404705,1762599038255,-500.0,0.00017773,2]
[393404706,1762599038265,-500.0,0.00017773,2]
[393404707,1762599038274,-500.0,0.00017773,2]
[393404708,1762599038284,-500.0,0.00017773,2]
[393404709,1762599038292,-500.0,0.00017773,2]
[393404710,1762599038301,-500.0,0.00017773,2]
[393404711,1762599038310,-122.19110579,0.00017773,2]
[393404712,1762599038323,-377.80889421,0.00017773,2]
[393404713,1762599038333,-501.17210201,0.00017773,2]
[393404714,1762599038342,-500.0,0.00017773,2]
[393404715,1762599038351,-500.0,0.00017773,2]
[393404716,1762599038360,-374.78377538,0.00017773,2]
[393404717,1762599038369,-500.0,0.00017773,2]
[393404718,1762599038379,-274.40671567,0.00017773,2]
[393404719,1762599038388,-500.0,0.00017773,2]
[393404720,1762599038397,-482.35,0.00017789,2]
[393404721,1762599038406,-151.0,0.00017789,2]
[393404722,1762599038415,-151.0,0.00017789,2]
[393404723,1762599038424,-151.0,0.00017789,2]
[393404724,1762599038433,-151.0,0.00017789,2]
[393404726,1762599038442,-151.0,0.00017789,2]
[393404728,1762599038451,-151.0,0.00017789,2]
[393404729,1762599038460,-151.0,0.00017789,2]
[393404730,1762599038469,-104.23423725,0.00017789,2]
[393404731,1762599038488,-46.76576275,0.00017789,2]
[393404732,1762599038498,-151.0,0.00017789,2]
[393404733,1762599038506,-151.0,0.00017789,2]
[393404734,1762599038517,-151.0,0.00017789,2]
[393404735,1762599038527,-151.0,0.00017789,2]
[393404736,1762599038536,-151.0,0.00017789,2]
[393404737,1762599038546,-151.0,0.00017789,2]
[393404738,1762599038556,-151.0,0.00017789,2]
[393404739,1762599038565,-151.0,0.00017789,2]
[393404740,1762599038575,-151.0,0.00017789,2]
[393404741,1762599038584,-151.0,0.00017789,2]
[393404742,1762599038593,-151.0,0.00017789,2]
[393404743,1762599038602,-151.0,0.00017789,2]
[393404744,1762599038610,-151.0,0.00017789,2]
[393404745,1762599038620,-151.0,0.00017789,2]
[393404746,1762599038629,-151.0,0.00017789,2]
[393404747,1762599038638,-151.0,0.00017789,2]
[393404748,1762599038648,-151.0,0.00017789,2]
[393404749,1762599038658,-151.0,0.00017789,2]
[393404750,1762599038667,-151.0,0.00017789,2]
[393404751,1762599038677,-151.0,0.00017789,2]
[393404752,1762599038689,-151.0,0.00017789,2]
[393404753,1762599038702,-236.7620709,0.00017789,2]
[393404754,1762599038712,-151.0,0.00017797,2]
[393404755,1762599038721,-151.0,0.00017797,2]
[393404756,1762599038738,-486.60131354,0.00017799,2]
[393404757,1762599038753,-500.0,0.00017799,2]
[393404758,1762599038764,-500.0,0.00017799,2]
[393404759,1762599038774,-500.0,0.00017799,2]
[393404760,1762599038784,-500.0,0.00017799,2]
[393404761,1762599038794,-500.0,0.00017799,2]
[393404762,1762599038805,-500.0,0.00017799,2]
[393404763,1762599038815,-500.0,0.00017799,2]
[393404764,1762599038824,-32.59539924,0.00017799,2]
[393404795,1762599043374,-467.40460076,0.00017799,2]
[393404796,1762599043383,-247.90520371,0.00017799,2]
[393404797,1762599043625,-252.09479629,0.00017799,2]
[393404798,1762599043634,-500.0,0.00017799,2]
[393404799,1762599043643,-500.0,0.00017799,2]
[393404800,1762599043653,-500.0,0.00017799,2]
[393404801,1762599043662,-500.0,0.00017799,2]
[393404802,1762599043671,-500.0,0.00017799,2]
[393404803,1762599043679,-500.0,0.00017799,2]
[393404804,1762599043688,-571.36555843,0.00017799,2]
[393404805,1762599043697,-500.0,0.00017799,2]
[393404806,1762599043706,-500.0,0.00017799,2]
[393404807,1762599043716,-500.0,0.00017799,2]
[393404808,1762599043725,-443.73507614,0.00017799,2]
[393404809,1762599043734,-500.0,0.00017799,2]
[393404810,1762599043743,-500.0,0.00017799,2]
[393404811,1762599043752,-171.19878526,0.00017799,2]
[393404812,1762599043761,-331.41160432,0.00017799,2]
[393404813,1762599043770,-265.73372938,0.00017799,2]
[393404814,1762599043779,-500.0,0.00017799,2]
[393404815,1762599043788,-500.0,0.00017799,2]
[393404816,1762599043797,-500.0,0.00017799,2]
[393404817,1762599043806,-500.0,0.00017799,2]
[393404818,1762599043815,-500.0,0.00017799,2]
[393404819,1762599043824,-397.07285472,0.00017799,2]
[393404820,1762599043835,-102.92714528,0.00017799,2]
[393404821,1762599043844,-500.0,0.00017799,2]
[393404822,1762599043853,-500.0,0.00017799,2]
[393404823,1762599043862,-500.0,0.00017799,2]
[393404824,1762599043871,-124.11184197,0.00017799,2]
[393404825,1762599043882,-375.88815803,0.00017799,2]
[393404826,1762599043891,-317.83784197,0.00017799,2]
[393404831,1762599046495,-182.16215803,0.00017799,2]
[393404832,1762599046505,-350.0,0.00017799,2]
[393404833,1762599046514,-500.0,0.00017799,2]
[393404834,1762599046523,-500.0,0.00017799,2]
[393404835,1762599046532,-8739.83784197,0.000178,2]
[393404838,1762599273613,1592.38,8.638e-05,2]
[393404839,1762599273692,1592.38,9.075e-05,2]
[393404840,1762599273892,1592.38,9.512e-05,2]
[393404841,1762599274094,1592.38,9.949e-05,2]
[393404842,1762599274289,1592.38,0.00010386,2]
[393404843,1762599274485,1592.38,0.00010822,2]
[393404844,1762599274676,445.73,0.00011259,2]
[393404845,1762599274699,1146.65,0.00011259,2]
[393404846,1762599275093,1592.38,0.00011696,2]
[393404847,1762599275298,1592.38,0.00012133,2]
[393404848,1762599275497,1592.38,0.0001257,2]
[393404849,1762599275710,1592.38,0.00013007,2]
[393404850,1762599276207,1592.38,0.00013443,2]
[393404851,1762599276416,891.46,0.0001388,2]
[393404852,1762599276443,700.92,0.0001388,2]
[393404853,1762599276604,1592.38,0.00014317,2]
[393404854,1762599276788,1592.38,0.00014754,2]
[393404855,1762599282710,277.63535619,0.00014921,2]
[393404856,1762599286018,-1592.38,0.00015191,2]
[393404857,1762599300993,-1592.38,0.00015627,2]
[393404863,1762599906315,530.05,0.00013699,2]
[393404864,1762599908618,1072.23,0.00038996,120]
[393404865,1762599908856,1072.23,0.00038996,120]
[393404866,1762599909093,1072.23,0.00038996,120]
[393404867,1762599909331,1072.23,0.00038996,120]
[393404868,1762599909612,1072.23,0.00038996,120]
[393404869,1762599909847,1072.23,0.00038996,120]
[393404870,1762599910088,1072.23,0.00038996,120]
[393404871,1762599910464,1072.23,0.00038996,120]
[393404872,1762599910581,1072.23,0.00038996,120]
[393404873,1762599910807,1072.23,0.00038996,120]
[393404874,1762599911064,1072.23,0.00038996,120]
[393404875,1762599911271,1072.23,0.00038996,120]
[393404876,1762599911525,1072.23,0.00038996,120]
[393404877,1762599911777,1072.23,0.00038996,120]
[393404878,1762599912030,1072.23,0.00038996,120]
[393404879,1762599912265,1072.23,0.00038996,120]
[393404880,1762599912540,1072.23,0.00038996,120]
[393404881,1762599912786,1072.23,0.00038996,120]
[393404882,1762599913035,1072.23,0.00038996,120]
[393404883,1762599913358,1072.23,0.00038996,120]
[393404884,1762599913599,1072.23,0.00038996,120]
[393404885,1762599913866,1072.23,0.00038996,120]
[393404886,1762599914109,1072.23,0.00038996,120]
[393404887,1762599914346,1072.23449245,0.00038996,120]
[393404890,1762600082394,-281.14038517,0.00015911,2]
[393404891,1762600085922,-186.74251173,0.00015911,2]
[393404892,1762600087446,-240.32629728,0.00015911,2]
[393404893,1762600152209,-200.0,0.00015746,2]
[393404894,1762600154556,-172.47303695,0.00015911,2]
[393404898,1762600167937,-170.82696305,0.00015911,2]
[393404899,1762600182487,-257.22052321,0.00015894,2]
[393404900,1762600198372,4728.06,0.0001574,2]
[393404901,1762600198903,-313.42660832,0.00015911,2]
[393404902,1762600222499,500.0,0.00038996,120]
[393404903,1762600222878,500.0,0.00038996,120]
[393404904,1762600230735,-301.038,0.00015911,2]
[393404913,1762600232326,-152.87,0.00015758,2]
[393404915,1762600232335,-1356.0461975,0.00015911,2]
[393404917,1762600232345,-217.18810693,0.00015938,2]
[393404919,1762600232354,-168.5378,0.00015964,2]
[393404920,1762600232363,-1000.0,0.0001603,2]